[Event "3rd Sharjah Challengers 2023"]
[Site "Sharjah"]
[Date "2023.05.18"]
[Round "2.7"]
[White "Hesham, Abdelrahman"]
[Black "Eiti, Bashir"]
[Result "1-0"]
[ECO "D80"]
[WhiteElo "2409"]
[BlackElo "2346"]
[Annotator "TA"]
[PlyCount "79"]
[EventDate "2023.05.16"]
[EventType "swiss"]
[EventCountry "UAE"]
[SourceTitle "playchess.com"]
[Source "ChessBase"]
[SourceQuality "1"]
[TimeControl "5400+30"]

{[%evp 9,79,26,20,14,21,12,28,22,18,-14,-13,-11,-14,-14,0,15,37,0,112,106,177,171,163,173,152,161,206,221,211,212,372,378,827,835,835,835,815,820,777,794,790,781,746,679,662,635,763,765,952,945,1445,1422,1302,1279,1266,1202,5137,5121,5555,2237,29981,29982,29979,5710,5710,5705,29992,29992,29996,29997,29997,29998]} 1. d4 {[%emt 0:00:03]} Nf6 {[%emt 0:00:10]} 2. c4 {[%emt 0:00:03]} g6 {[%emt 0:00:09]} 3. Nc3 {[%emt 0:00:18]} d5 {[%emt 0:00:06]} 4. h4 {[%emt 0:00:05]} c6 {[%emt 0:06:39]} 5. cxd5 {[%emt 0:00:05]} cxd5 {[%emt 0:00:18]} 6. Bf4 {[%emt 0:00:04] D80: Grünfeld: Unusual White 4th moves and 4 Bg5.} Bg7 {[%emt 0:04:02]} 7. e3 {[%emt 0:00:05]} Nc6 {[%emt 0:01:46] [#]} 8. Rc1 $146 {[%emt 0:00:05] White has an edge.} ({Predecessor:} 8. h5 Nxh5 9. Rxh5 gxh5 10. Qxh5 e5 11. dxe5 Be6 12. Nf3 Qb6 13. O-O-O O-O-O 14. Bb5 {0-1 Ivanisevic,I (2569)-Fedoseev,V (2701) Titled Tuesday intern op 26th Apr Late blitz 2022 (2)}) 8... O-O {[%emt 0:05:42]} 9. h5 {[%emt 0:00:14]} Nxh5 {[%emt 0:02:17]} (9... gxh5 10. Bd3 $14) 10. Rxh5 {[%emt 0:00:06]} gxh5 {[%emt 0:00:03]} 11. Qxh5 {[%emt 0:00:06]} e6 {[%emt 0:05:26]} 12. Bd3 {[%emt 0:01:36][%csl Gd3][%cal Rh5h7]} f5 {[%emt 0:00:55]} 13. g4 {[%emt 0:03:13]} (13. Nf3 $5 {[%cal Rg2g4]}) 13... Qb6 {[%emt 0:15:34]} (13... e5 $11 {keeps the balance.} 14. dxe5 d4) 14. gxf5 $40 {[%emt 0:11:08][%mdl 128] White has strong attack. White is more active. Black is on the road to losing.} Nb4 {[%emt 0:05:02] [#]} (14... exf5 $16 {is a better defense.} 15. Nxd5 Qa5+ 16. Nc3 Be6) 15. Bb1 $1 $18 {[%emt 0:08:12][%cal Of5f6] And now f6! would win.} exf5 {[%emt 0:00:04]} 16. Nf3 {[%emt 0:17:19] Threatens to win with a3.} Bd7 {[%emt 0:10:58]} 17. a3 {[%emt 0:05:32][%mdl 1024] White has strong compensation.} (17. Ng5 $6 h6 18. Nf3 Nc6 $11) 17... Be8 {[%emt 0:13:27] [#]} 18. Qh2 {[%emt 0:24:48]} Nc6 {[%emt 0:00:41]} 19. b4 {[%emt 0:00:06]} ({And not} 19. Nxd5 Qxb2 20. Rd1 Bg6 $15) (19. Ng5 Bg6 20. Nxd5 Qxb2 21. Rxc6 Qxb1+ 22. Ke2 Rfe8 23. Rxg6 Qb5+ 24. Kf3 Qxd5+ 25. e4 fxe4+ 26. Kg3 hxg6 $14) 19... Ne7 {[%emt 0:03:22]} (19... Qa6 {was worth a try.}) 20. Bd6 {[%emt 0:04:38]} Bf6 {[%emt 0:05:49]} (20... Nc8) 21. Bxe7 {[%emt 0:03:49][%mdl 64] Remove Defender} Bxe7 {[%emt 0:00:07]} 22. Nxd5 {[%emt 0:00:08] Excellent horsemanship.} Qd6 {[%emt 0:01:34]} 23. Nxe7+ {[%emt 0:00:20]} ({Less strong is} 23. Rc7 Qxd5 24. Rxe7 Rf7 25. Qg3+ Kh8 26. Rxf7 Bxf7 $11) 23... Qxe7 {[%emt 0:00:05] Black is weak on the dark squares} 24. Rc7 {[%emt 0:00:16][%mdl 64] Skewer} Bd7 {[%emt 0:01:01]} 25. Ba2+ {[%emt 0:00:13]} Kg7 {[%emt 0:01:29]} 26. Qe5+ {[%emt 0:00:34]} Qxe5 {[%emt 0:01:05]} 27. Rxd7+ {[%emt 0:00:13]} Kh6 {[%emt 0:01:03]} 28. dxe5 {[%emt 0:01:44][%cal Bd4e5,Be5e6,Be6e7][%mdl 32]} b5 {[%emt 0:04:21]} 29. e6 {[%emt 0:01:07]} Kg6 {[%emt 0:03:06]} 30. Ne5+ {[%emt 0:00:43]} Kh6 {[%emt 0:01:54]} 31. e7 {[%emt 0:00:16]} Rfe8 {[%emt 0:00:45]} 32. Bf7 {[%emt 0:00:12]} Rec8 {[%emt 0:00:31]} 33. Bd5 {[%emt 0:00:25] Intending Rd8 and mate.} Rc1+ {[%emt 0:00:49]} 34. Ke2 {[%emt 0:00:20]} (34. Kd2 $142 Re8 35. Kxc1) 34... Rc2+ {[%emt 0:03:13]} 35. Kf3 {[%emt 0:00:28]} Re8 {[%emt 0:00:32]} 36. Bf7 {[%emt 0:00:55]} Rxe7 {[%emt 0:00:35]} 37. Rxe7 {[%emt 0:00:07]} f4 {[%emt 0:00:23]} 38. Bg8 {[%emt 0:00:44] White mates.} fxe3 {[%emt 0:00:13]} 39. Kg4 {[%emt 0:00:16][%csl Gg8][%cal Re7h7]} Rc4+ {[%emt 0:00:50]} 40. f4 {[%emt 0:00:10] Weighted Error Value: White=0.11 (very precise) /Black=0.38} 1-0

[Event "3rd Sharjah Challengers 2023"]
[Site "Sharjah"]
[Date "2023.05.18"]
[Round "2.8"]
[White "Elgabry, Mohsen"]
[Black "Bai, Adelard"]
[Result "0-1"]
[ECO "A12"]
[WhiteElo "2277"]
[BlackElo "2409"]
[Annotator "TA"]
[PlyCount "278"]
[EventDate "2023.05.16"]
[EventType "swiss"]
[EventCountry "UAE"]
[SourceTitle "playchess.com"]
[Source "ChessBase"]
[SourceQuality "1"]
[TimeControl "5400+30"]

{[%evp 65,278,-12,0,0,0,0,0,0,0,0,0,0,0,0,18,0,0,0,0,0,0,-594,-583,-531,-418,-426,-426,-388,-85,-85,-85,-91,-85,-98,-60,-60,-60,-60,-60,-60,-60,-88,-2,-2,0,-60,-60,-60,-60,-60,-60,-60,-60,-60,-60,-60,-60,-60,-60,-60,-60,-60,-60,-60,-60,-60,-60,-60,-60,-60,0,0,0,0,0,0,0,0,0,0,0,0,0,0,0,0,0,0,0,0,0,0,0,0,0,0,0,0,0,0,0,0,0,0,0,0,0,0,0,0,0,0,0,0,0,0,0,0,0,-37,0,0,0,0,0,0,0,0,0,0,0,0,0,0,0,0,0,0,0,0,0,0,0,0,0,0,0,0,0,0,0,0,0,0,0,0,0,0,0,0,0,0,0,0,0,0,0,-31,0,-31,-31,-31,-31,-31,-31,-31,-31,-31,-31,-31,0,-31,0,-31,-31,-31,0,-31,0,0,0,0,0,0,0,0,0,0,0,0,0,0,0,-8,-8,-29983,-29984,-29984,-29985,-29985,-29986,-29986,-29987,-29987,-29988]} 1. Nf3 {[%emt 0:00:10]} d5 {[%emt 0:00:10]} 2. g3 {[%emt 0:00:16]} c6 {[%emt 0:00:10]} 3. Bg2 {[%emt 0:00:08]} Bf5 {[%emt 0:00:11]} 4. b3 {[%emt 0:01:10]} e6 {[%emt 0:01:40]} 5. Bb2 {[%emt 0:00:06]} Nf6 {[%emt 0:00:43]} 6. d3 {[%emt 0:00:33]} h6 {[%emt 0:00:38]} 7. Nbd2 {[%emt 0:00:44]} Be7 {[%emt 0:02:10]} 8. O-O {[%emt 0:01:18]} O-O {[%emt 0:00:09]} 9. a3 {[%emt 0:00:15]} a5 {[%emt 0:02:59]} 10. c4 {[%emt 0:00:41]} Bh7 {[%emt 0:02:53]} 11. Qc2 {[%emt 0:01:06]} Nbd7 {[%emt 0:02:34]} 12. Rac1 {[%emt 0:01:11]} Qb6 {[%emt 0:04:27]} 13. Rb1 {[%emt 0:04:11]} Qa6 {[%emt 0:13:54]} 14. Rfc1 {[%emt 0:07:03]} Rfe8 {[%emt 0:06:25]} 15. Ra1 {[%emt 0:15:33]} Qb6 {[%emt 0:12:25]} 16. Bd4 {[%emt 0:01:42]} c5 {[%emt 0:00:35]} 17. Bxf6 {[%emt 0:00:26]} Bxf6 {[%emt 0:02:26]} 18. Rab1 {[%emt 0:00:07]} Rac8 {[%emt 0:01:22]} 19. Ne1 {[%emt 0:03:15]} Qd6 {[%emt 0:09:55]} 20. Qd1 {[%emt 0:00:42]} Ne5 {[%emt 0:02:26]} 21. Ndf3 {[%emt 0:01:57]} Nc6 {[%emt 0:01:05]} 22. Nc2 {[%emt 0:00:30]} b6 {[%emt 0:03:17]} 23. Qe1 {[%emt 0:00:50]} Nd4 {[%emt 0:03:16]} 24. Ne3 {[%emt 0:00:39]} Nxf3+ {[%emt 0:02:19]} 25. Bxf3 {[%emt 0:00:10]} Bg5 {[%emt 0:03:17]} 26. Rd1 {[%emt 0:02:06]} d4 {[%emt 0:02:53]} 27. Nc2 {[%emt 0:01:00]} e5 {[%emt 0:00:39]} 28. e4 {[%emt 0:02:22]} dxe3 {[%emt 0:04:36]} 29. Nxe3 {[%emt 0:01:45]} Bxe3 {[%emt 0:00:05]} 30. Qxe3 {[%emt 0:00:08]} Bf5 {[%emt 0:01:57]} 31. b4 {[%emt 0:03:47]} axb4 {[%emt 0:00:21]} 32. axb4 {[%emt 0:00:06]} cxb4 {[%emt 0:00:16]} 33. Qe1 {[%emt 0:00:25]} Qd4 {[%emt 0:05:11]} (33... Bxd3 $2 34. Be4 (34. Qxb4 Qxb4 35. Rxb4 e4 $17) 34... Rxc4 35. Bxd3 $18 (35. Rxd3 Rd4 $18)) 34. Rxb4 {[%emt 0:05:44]} Red8 {[%emt 0:02:24]} (34... Bxd3 $2 35. c5 Qxc5 36. Rxd3 $18) 35. Be2 {[%emt 0:07:49]} e4 {[%emt 0:01:27]} 36. dxe4 {[%emt 0:18:09]} Qxe4 {[%emt 0:00:01]} 37. Bf1 {[%emt 0:00:01]} Qf3 {[%emt 0:00:17]} 38. Qe2 {[%emt 0:03:30]} Qc6 {[%emt 0:02:04]} 39. Bg2 {[%emt 0:02:30]} Qf6 {[%emt 0:01:33]} 40. h3 {[%emt 0:01:09]} Rxd1+ {[%emt 0:00:38]} 41. Qxd1 {[%emt 0:00:00]} Rd8 {[%emt 0:00:14]} 42. Qc1 {[%emt 0:00:29]} Qd4 {[%emt 0:00:37]} 43. Qb2 $2 {[%emt 0:04:04][%mdl 8192]} (43. h4 $11 {and White has nothing to worry.}) 43... Qd1+ $19 {[%emt 0:00:21]} 44. Kh2 {[%emt 0:00:53]} Rd2 {[%emt 0:00:35]} 45. Qe5 {[%emt 0:01:44]} Rxf2 {[%emt 0:00:55]} 46. Rb2 {[%emt 0:01:02] [#]} Rxb2 $2 {[%emt 0:00:37]} (46... Bc2 $1 $19 {and Black stays clearly on top. ( -> ...Qf3)} 47. Qe8+ Kh7) 47. Qxb2 $17 {[%emt 0:00:01]} Qd6 {[%emt 0:00:34]} 48. Bd5 {[%emt 0:00:25]} Be6 {[%emt 0:01:37]} 49. Bxe6 {[%emt 0:00:24]} fxe6 {[%emt 0:00:28]} 50. Qe2 {[%emt 0:00:17]} Kf7 {[%emt 0:00:21]} 51. h4 {[%emt 0:00:11]} Qd4 {[%emt 0:00:31]} 52. Qf3+ {[%emt 0:00:22]} Ke7 {[%emt 0:01:00]} 53. Qc6 {[%emt 0:00:16]} Qd6 {[%emt 0:00:30]} ({Better is} 53... g5 $17 54. hxg5 hxg5) 54. Qb7+ $11 {[%emt 0:00:05]} Kf8 {[%emt 0:00:34]} 55. Qa8+ {[%emt 0:00:12]} ({White should play} 55. Qc8+ $11 Kf7 56. Qb7+ Kg8 57. Qe4) 55... Kf7 $1 $15 {[%emt 0:00:32]} 56. Qb7+ {[%emt 0:00:02]} Kg8 $1 {[%emt 0:00:28]} 57. Qa8+ {[%emt 0:00:01]} Qf8 $1 {[%emt 0:00:11]} 58. Qc6 {[%emt 0:00:38]} Qf2+ {[%emt 0:00:06]} 59. Kh3 {[%emt 0:00:13]} Qf1+ {[%emt 0:00:32]} 60. Kh2 {[%emt 0:00:01]} Qe2+ {[%emt 0:00:05]} 61. Kh3 {[%emt 0:00:20]} h5 {[%emt 0:00:30]} 62. Qxb6 {[%emt 0:01:56]} Qxc4 {[%emt 0:00:10]} 63. Qd8+ {[%emt 0:00:10]} Kh7 $1 {[%emt 0:00:08]} 64. Qe8 {[%emt 0:00:10]} Qg4+ {[%emt 0:00:13]} 65. Kh2 {[%emt 0:00:36]} Qf5 {[%emt 0:00:08]} 66. Qc8 {[%emt 0:02:30]} Kg6 {[%emt 0:00:55]} 67. Kg2 {[%emt 0:00:39]} e5 {[%emt 0:00:29]} (67... Qe4+ $15 68. Kf2 Kf5) 68. Qe8+ {[%emt 0:00:19]} Kh7 {[%emt 0:00:07]} 69. Qb5 {[%emt 0:00:29]} Qe4+ {[%emt 0:00:04]} 70. Kf2 {[%emt 0:00:23]} Qd4+ {[%emt 0:00:21]} 71. Ke2 {[%emt 0:00:22]} Qg4+ {[%emt 0:00:30]} 72. Kf2 {[%emt 0:00:01]} e4 {[%emt 0:00:24]} 73. Qb3 {[%emt 0:01:03]} Qf5+ {[%emt 0:00:45]} 74. Kg2 {[%emt 0:00:04]} Kg6 {[%emt 0:00:28]} 75. Qb6+ {[%emt 0:00:52]} Qf6 {[%emt 0:00:07]} 76. Qe3 {[%emt 0:00:16]} Qb2+ {[%emt 0:00:08]} 77. Kf1 {[%emt 0:00:34]} Qe5 {[%emt 0:00:18]} 78. Kg2 {[%emt 0:00:02]} Qd5 {[%emt 0:00:24]} 79. Kf2 {[%emt 0:00:48]} Kh7 {[%emt 0:00:45]} 80. Ke2 {[%emt 0:00:16]} Qf5 {[%emt 0:00:08]} 81. Qb3 {[%emt 0:00:29]} Kg6 {[%emt 0:00:11]} 82. Qb6+ {[%emt 0:00:22]} Kf7 {[%emt 0:00:38]} 83. Qb7+ {[%emt 0:00:36]} Kf6 {[%emt 0:00:16]} 84. Qb6+ {[%emt 0:00:19]} Qe6 {[%emt 0:00:08]} 85. Qd8+ {[%emt 0:12:50]} Kf7 {[%emt 0:00:24]} 86. Qg5 {[%emt 0:00:00]} Qc4+ {[%emt 0:00:41]} 87. Kf2 {[%emt 0:00:00]} Qc2+ {[%emt 0:00:23]} 88. Ke1 {[%emt 0:00:00]} Qc3+ {[%emt 0:00:10]} 89. Ke2 {[%emt 0:00:00]} Qf3+ {[%emt 0:00:08]} 90. Kd2 $1 {[%emt 0:00:00]} Qf2+ {[%emt 0:03:01]} 91. Kd1 {[%emt 0:00:00]} Qf3+ {[%emt 0:01:19]} 92. Kd2 $1 {[%emt 0:00:00]} g6 {[%emt 0:00:09]} 93. Qd5+ {[%emt 0:00:00]} Kg7 {[%emt 0:00:35]} 94. Qd4+ {[%emt 0:00:00]} Kh7 {[%emt 0:00:38]} 95. Qe3 {[%emt 0:00:00]} Qg2+ {[%emt 0:00:29]} 96. Kc3 {[%emt 0:00:00]} Qa2 {[%emt 0:00:19]} 97. Kd4 {[%emt 0:00:00]} Qa4+ {[%emt 0:00:13]} 98. Ke5 {[%emt 0:00:00]} Qe8+ {[%emt 0:01:41]} 99. Kf4 {[%emt 0:00:00]} Qe6 {[%emt 0:00:13]} 100. Qxe4 {[%emt 0:00:00]} Qg4+ {[%emt 0:00:05]} 101. Ke3 {[%emt 0:00:00]} Qxg3+ {[%emt 0:00:04]} 102. Kd2 {[%emt 0:00:00]} Qd6+ {[%emt 0:00:09]} 103. Ke3 {[%emt 0:00:10]} Qc7 {[%emt 0:00:24]} 104. Kf3 {[%emt 0:00:19]} Qd6 {[%emt 0:00:22]} 105. Kg2 {[%emt 0:00:28]} Kg7 {[%emt 0:00:06]} 106. Qa4 {[%emt 0:01:44]} Kf6 {[%emt 0:00:12]} 107. Kf3 {[%emt 0:00:22]} Qd3+ {[%emt 0:00:05]} 108. Kf4 {[%emt 0:00:38]} Qf1+ {[%emt 0:01:01]} 109. Kg3 {[%emt 0:00:04]} Qe1+ {[%emt 0:00:15]} 110. Kf3 {[%emt 0:00:04]} Qc3+ {[%emt 0:01:43]} 111. Kf4 {[%emt 0:00:05]} Qc5 {[%emt 0:00:36]} 112. Qa1+ {[%emt 0:00:09]} Kf7 {[%emt 0:00:13]} 113. Qa2+ {[%emt 0:00:15]} Kg7 {[%emt 0:00:22]} 114. Qb2+ $1 {[%emt 0:00:40]} Kh7 {[%emt 0:00:13]} ({Much weaker is} 114... Kf7 $6 115. Qb7+ Kg8 116. Qb8+ Kh7 117. Qd8 $15) 115. Qb7+ $1 {[%emt 0:02:48]} Kh6 {[%emt 0:00:10]} 116. Qh1 {[%emt 0:01:32]} Qf5+ {[%emt 0:00:28]} 117. Ke3 {[%emt 0:00:08]} Qg4 {[%emt 0:00:19]} 118. Qh2 {[%emt 0:00:13]} Qe6+ {[%emt 0:00:11]} 119. Kf3 {[%emt 0:00:09]} Qb3+ {[%emt 0:00:02]} 120. Ke4 {[%emt 0:00:12]} Qc4+ {[%emt 0:00:05]} 121. Ke3 {[%emt 0:00:31]} Qc5+ {[%emt 0:00:10]} 122. Ke4 {[%emt 0:00:52]} Qc4+ {[%emt 0:00:31]} 123. Ke3 {[%emt 0:00:05]} Qe6+ {[%emt 0:00:04]} 124. Kf3 {[%emt 0:00:20]} Qf5+ {[%emt 0:00:51]} 125. Ke3 {[%emt 0:00:05]} Qe6+ {[%emt 0:01:02]} 126. Kd4 {[%emt 0:00:17]} g5 {[%emt 0:00:42]} 127. hxg5+ {[%emt 0:01:18]} Kxg5 {[%emt 0:00:02]} 128. Qd2+ {[%emt 0:00:09]} Kg6 {[%emt 0:01:19]} 129. Qh2 {[%emt 0:00:21]} Qe1 {[%emt 0:00:36]} 130. Qg2+ {[%emt 0:00:49]} Kh6 {[%emt 0:00:22]} 131. Qe4 {[%emt 0:00:43]} Qd2+ {[%emt 0:00:03]} 132. Ke5 {[%emt 0:00:39]} Qg5+ {[%emt 0:00:10]} 133. Kd4 {[%emt 0:00:41]} Qd2+ {[%emt 0:01:45]} 134. Qd3 {[%emt 0:00:16]} Qf4+ {[%emt 0:00:07]} 135. Qe4 $2 {[%emt 0:00:02][%mdl 8192]} (135. Kc3 $11) 135... Kg5 {[%emt 0:00:07]} 136. Kd3 {[%emt 0:00:55]} Qxe4+ {[%emt 0:00:11]} 137. Kxe4 {[%emt 0:00:01]} Kg4 {[%emt 0:00:06]} 138. Ke3 {[%emt 0:00:16]} Kg3 {[%emt 0:00:05]} 139. Ke2 {[%emt 0:00:30]} Kg2 {[%emt 0:00:05]} 0-1

[Event "3rd Sharjah Challengers 2023"]
[Site "Sharjah"]
[Date "2023.05.18"]
[Round "2.9"]
[White "Sibashvili, Giorgi"]
[Black "Liyanage, Ranindu Dilshan"]
[Result "1/2-1/2"]
[ECO "A01"]
[WhiteElo "2408"]
[BlackElo "2342"]
[Annotator "TA"]
[PlyCount "87"]
[EventDate "2023.05.16"]
[EventType "swiss"]
[EventCountry "UAE"]
[SourceTitle "playchess.com"]
[Source "ChessBase"]
[SourceQuality "1"]
[TimeControl "5400+30"]

{[%evp 11,87,-9,0,0,-6,-4,1,-22,17,-4,25,-19,12,13,9,17,13,13,39,-8,0,0,0,0,0,0,0,0,0,0,0,0,0,-27,31,-144,-144,-137,-147,-131,-139,-131,-137,-136,-136,-179,-160,-161,-153,-138,-152,-150,-66,-54,-49,-51,0,0,0,0,0,0,0,0,0,0,0,0,0,0,0,0,0,0,0,0,0,0]} 1. b3 {[%emt 0:00:03]} e5 {[%emt 0:02:08]} 2. Bb2 {[%emt 0:00:07]} Nc6 {[%emt 0:00:11]} 3. c4 {[%emt 0:00:10]} Nf6 {[%emt 0:00:46]} 4. e3 {[%emt 0:00:12]} d5 {[%emt 0:00:27]} 5. cxd5 {[%emt 0:00:06]} Nxd5 {[%emt 0:00:06]} 6. a3 {[%emt 0:00:18]} Bd6 {[%emt 0:01:53]} 7. d3 {[%emt 0:01:39] now supersedes 7.Qc2. A01: Nimzowitsch-Larsen Opening.} O-O {[%emt 0:02:36]} 8. Nf3 {[%emt 0:01:33]} Qe7 {[%emt 0:06:48]} 9. Nbd2 {[%emt 0:01:59] 9.Be2 is not played anymore.} a5 {[%emt 0:04:16] [#]} (9... f5 $5 {[%cal Re5e4]}) 10. g3 $146 {[%emt 0:03:16]} ({Predecessor:} 10. Be2 Bg4 11. Qc2 Kh8 12. h3 Bh5 13. g4 Bg6 14. h4 h6 15. h5 Bh7 16. Rg1 {½-½ Artemiev,V (2731)-Le,Q (2713) Bucharest Superbet blitz 2019 (14)}) 10... f5 {[%emt 0:09:20]} 11. Nc4 {[%emt 0:01:37]} Nf6 {[%emt 0:07:18]} 12. Bg2 {[%emt 0:02:17]} e4 {[%emt 0:06:49]} 13. dxe4 {[%emt 0:30:16]} fxe4 {[%emt 0:00:07]} 14. Nfd2 {[%emt 0:00:46]} Ne5 {[%emt 0:08:51] aiming for ...Nd3+.} 15. Nxe4 {[%emt 0:21:29]} (15. O-O $14) 15... Bg4 {[%emt 0:06:16]} (15... Nxe4 {keeps more tension.} 16. Qd5+ Be6 17. Qxe4 Qf7) 16. Qc2 {[%emt 0:01:56]} Nxe4 {[%emt 0:06:09]} 17. Bxe4 {[%emt 0:00:32]} Nf3+ {[%emt 0:00:25]} 18. Bxf3 {[%emt 0:00:41]} Bxf3 {[%emt 0:00:08]} 19. O-O {[%emt 0:00:20]} Qf7 {[%emt 0:01:39]} 20. Rfe1 {[%emt 0:11:45]} Qh5 {[%emt 0:02:01]} 21. Nd2 {[%emt 0:01:46]} Bc6 $40 {[%emt 0:02:03][%cal Of8f2][%mdl 128] Black attacks.} 22. Qc3 {[%emt 0:05:21][%csl Gb2][%cal Rc3g7] Chess con chili.} Rf6 {[%emt 0:10:45]} (22... Qf7 23. f4 $16) (22... Rf7 $11) 23. Qc4+ $2 {[%emt 0:04:33]} (23. e4 $14 {keeps the upper hand.}) 23... Bd5 $17 {[%emt 0:00:52][%cal Oh5h2] ( -> ...Qxh2+!)} 24. Qh4 {[%emt 0:02:45]} Qxh4 {[%emt 0:00:23]} 25. gxh4 {[%emt 0:00:01] [#] White is weak on the light squares} Bxh2+ $1 {[%emt 0:01:49][%mdl 576] Decoy. A strong pair of Bishops.} 26. Kf1 {[%emt 0:03:50]} Rh6 {[%emt 0:00:56]} 27. Ke2 {[%emt 0:01:40]} Rxh4 {[%emt 0:01:05]} 28. f4 {[%emt 0:00:38]} Rd8 {[%emt 0:06:15] Strongly threatening ...Bg3.} (28... Bg3 29. Rg1 Rh2+ 30. Kd3 $15) 29. Rac1 {[%emt 0:00:43]} Bg3 {[%emt 0:01:47]} 30. Rg1 {[%emt 0:01:14]} Rh2+ {[%emt 0:02:25]} 31. Kd3 {[%emt 0:00:02]} Bf7+ {[%emt 0:03:48]} (31... Bxb3+ 32. Bd4 Rxd2+ 33. Kxd2 Rxd4+ 34. Kc3 $14) ({Black should try} 31... Bc6+ $17 32. Bd4 Rh3) 32. Bd4 $15 {[%emt 0:00:04]} Bg6+ {[%emt 0:00:10]} 33. Ne4 $1 {[%emt 0:01:18] [#]} Bxf4 {[%emt 0:04:09]} 34. Rxg6 $11 {[%emt 0:01:18] The position is equal.} hxg6 {[%emt 0:00:05]} 35. exf4 {[%emt 0:00:03]} Rh3+ {[%emt 0:02:00]} (35... b5 $2 36. Ng5 Rc8 37. Rc6 $18) 36. Kc4 {[%emt 0:00:01]} b5+ {[%emt 0:00:19]} 37. Kc5 $1 {[%emt 0:00:01]} Rxb3 {[%emt 0:00:27]} 38. Rg1 {[%emt 0:00:57]} Rxa3 {[%emt 0:01:08] Threatens to win with ...Ra4.} 39. Rxg6 {[%emt 0:01:32]} Ra4 {[%emt 0:00:25]} 40. Rxg7+ {[%emt 0:00:48]} Kf8 {[%emt 0:00:10]} 41. Ng5 $1 {[%emt 0:00:14] And now Ne6+ would win.} Rc4+ $1 {[%emt 0:00:05]} (41... Rdxd4 42. Ne6+ (42. Rxc7 $2 Rd1 $19) 42... Ke8 43. Nxc7+ Kd8 44. Ne6+ (44. Nxb5 $2 Rxf4 45. Kd6 Rf6+ 46. Kd5 Rb4 $19) 44... Kc8 45. Nxd4 $18) 42. Kxb5 {[%emt 0:00:07] White wants to mate with Nh7+.} Rdxd4 {[%emt 0:00:27]} (42... Rb4+ $2 43. Kc5 (43. Kxa5 Rdxd4 44. Ne6+ Ke8 $11) 43... Rd6 44. Be5 $18 (44. Rxc7 Rbxd4 $11)) (42... Rcxd4 $5 43. Ne6+ $8 Ke8 44. Nxd4 (44. Nxc7+ Kf8 $11) 44... Rxd4 $11) 43. Ne6+ {[%emt 0:00:07]} Ke8 {[%emt 0:00:04] ...c6+ would be deadly.} 44. Nxd4 {[%emt 0:00:14] Whites escaped into a draw.   Weighted Error Value: White=0.15 (very precise) /Black=0.14 (very precise)} 1/2-1/2